Workbook

Sheet Итог план по месяцам (hidden)
A2: План-график догазификации домовладений* в газифицированных населенных пунктах без привлечения средств граждан
A4: № п/п | B4: Муниципальное образование | C4: Наименование населенного пункта | D4: Общее количество индивидуальных жилых домовладений в населенном пункте, шт | E4: График реализации догазификации
E5: 2021 год | I5: 2022 год
E6: Наименование газораспределительной организации | F6: Количество подключаемых индивидуальных жилых домовладений* в населенном пункте, шт | G6: Срок догазификации (месяц) | I6: Принадлежность сетей подключения (наименование газораспределительной организации) | J6: Количество подключаемых индивидуальных жилых домовладений* в населенном пункте, шт | K6: Срок догазификации (месяц)
G7: начало | H7: окончание | K7: начало | L7: окончание
A8: 1 | B8: 2 | C8: 3 | D8: 4 | E8: 5 | F8: 6 | G8: 11 | H8: 12 | I8: 13 | J8: 14 | K8: 19 | L8: 20
A9: 1 | B9: город Бокситогорск | C9: Бокситогорск, город | O9: январь
A10: 2 | B10: Борское сп Бокситого-рского МР | C10: Бор, дер. | O10: февраль | R10: 2021
A11: 3 | B11: Ефимовское городское поселение | C11: Ефимовский, г.п. | O11: март | R11: 2022
A12: 4 | B12: город Пикалево | C12: Пикалево, город | O12: апрель | R12: 2023
A13: 5 | B13: Самойловское сп Бокситогор-ского МР | C13: Самойлово, дер. | O13: май | R13: 2024
A14: 6 | B14: Бокситогорское городское поселение | C14: Сегла, дер. | O14: июнь | R14: 2025
A15: 7 | B15: Самойловское сельское поселение | C15: Сельхозтехника, пос. | O15: июль
A16: 8 | B16: Бегуницкое сельское поселение | C16: Совхозный, пос. | O16: август
A17: 9 | B17: Беседское сельское поселение | C17: Бегуницы, дер. | O17: сентябрь
A18: 10 | B18: Большеврудское сп поселение Волосовского МР | C18: Беседа, пос | O18: октябрь
A19: 11 | B19: город Волосово | C19: Большая Вруда, дер. | O19: ноябрь
A20: 12 | B20: Губаницкое сп | C20: Волосово, город | O20: декабрь
A21: 13 | B21: Рабитицкое сельское поселение | C21: Губаницы, дер.
A22: 14 | B22: Большедворское сельское поселение | C22: Домашковицы дер.
A23: 15 | B23: Зимитицкое сельское поселение | C23: Жилгородок, пос.
A24: 16 | B24: Изварское сельское поселение | C24: Заполье, дер.
A25: 17 | B25: Калитинское сельское поселение | C25: Захонье, дер.
A26: 18 | B26: Каложицкое сельское поселение | C26: Зимитицы, пос.
A27: 19 | B27: Клопицкое сп | C27: Извара, дер.
A28: 20 | B28: Кикеринское сельское поселение | C28: Калитино, дер.
A29: 21 | B29: Курковицкое сельское поселение | C29: Калитино, пос.
A30: 22 | B30: Курское сельское поселение | C30: Каложицы, пос.
A31: 23 | B31: Изварское сп | C31: Кемполово, дер.
A32: 24 | B32: Калитинское сп | C32: Кикерино, пос.
A33: 25 | B33: Большевруд-ское сп | C33: Клопицы, дер.
A34: 26 | B34: Рабитицкое сп | C34: Красные Череповицы, дер.
A35: 27 | B35: Бережковское сельское поселение | C35: Курковицы, дер.
A36: 28 | B36: Потанинское сельское поселение | C36: Курск, пос.
A37: 29 | B37: Волховское городское поселение | C37: Лиможа, дер.
A38: 30 | B38: Вындиноостровское сельское поселение | C38: Лисино, дер.
A39: 31 | B39: Староладожское сельское поселение | C39: Муромицы, дер.
A40: 32 | B40: Сабское сельское поселение | C40: Рабитицы, дер.
A41: 33 | B41: Иссадское сельское поселение | C41: Рабитицы, пос.
A42: 34 | B42: Кисельнинское сельское поселение | C42: Реполка, дер.
A43: 35 | B43: Колчановское сельское поселение | C43: Сельцо, пос.
A44: 36 | B44: Новоладожское городское поселение | C44: Сосницы, дер.
A45: 37 | B45: Сясьстройское городское поселение | C45: Старые Бегуницы, дер.
A46: 38 | B46: Селивановское сельское поселение | C46: Сумино, пос.
A47: 39 | B47: Агалатовское сельское поселение | C47: Терпилицы, дер.
A48: 40 | B48: Колтушское сельское поселение | C48: Торосово, дер.
A49: 41 | B49: Свердловское городское поселение | C49: Ущевицы, дер.
A50: 42 | B50: Бугровское сельское поеление | C50: Шуговицы, дер.
A51: 43 | B51: Кузьмоловское сельское поселение | C51: Бережки, дер.
A52: 44 | B52: Куйвозовское сельское поселение | C52: Весь, дер.
A53: 45 | B53: Лесколовское сельское поселение | C53: Волхов, город
A54: 46 | B54: Всеволожское городское поселение | C54: Вындин Остров, дер.
A55: 47 | B55: Юкковское сельское поселение | C55: Гостинополье, дер.
A56: 48 | B56: Дубровское городское поселение | C56: Ивановский Остров, дер.
A57: 49 | B57: Заневское городское поселение | C57: Извоз, дер.
A58: 50 | B58: Морозовское городское поселение | C58: Иссад, дер.
A59: 51 | B59: Токсовское городское поселение | C59: Кисельня, дер.
A60: 52 | B60: Романовское сельское поселение | C60: Колчаново, село
A61: 53 | B61: Кузьмоловское городское поселение | C61: Новая Ладога, город
A62: 54 | B62: Муринское городское поселение | C62: Поляша, дер.
A63: 55 | B63: Лесколовское сельское поселение | C63: Потанино, дер.
A64: 56 | B64: Юкковское сельское поселение | C64: Пульница, дер.
A65: 57 | B65: Щегловское сельское поселение | C65: Реброво, дер.
A66: 58 | B66: Бугровское сельское поселение | C66: Речников, пос.
A67: 59 | B67: Рахьинское сельское поселение | C67: Самушкино, дер.
A68: 60 | B68: Сертолово | C68: Селиваново, пос.
A69: 61 | B69: Скребловское сельское поселение | C69: Старая Ладога, село
A70: 62 | B70: Гончаровское сельское поселение | C70: Сясьстрой, город
A71: 63 | B71: Полянское сельское поселение | C71: Усадище, дер.
A72: 64 | B72: Рощинское городское поселение | C72: Юги, п.ст.
A73: 65 | B73: Выборг | C73: Агалатово, дер.
A74: 66 | B74: Первомайское сельское поселение | C74: Аро, дер.
A75: 67 | B75: Каменногороское городское поселение | C75: Большие Пороги, дер.
A76: 68 | B76: Красносельское сельское поселение | C76: Бугры, пос.
A77: 69 | B77: Светогорское городское поселение | C77: Варкалово, дер.
A78: 70 | B78: Советское городское поселение | C78: Вартемяги, дер.
A79: 71 | B79: Приморское городское поселение | C79: Васкелово, дер.
A80: 72 | B80: Первомайское сельское поселение Выборгского района | C80: Верхние Осельки, дер.
A81: 73 | B81: Приморское городское поселение Выборгского района | C81: Вирки, дер.
A82: 74 | B82: Пудомягское сельское поселение Гатчинского района | C82: Воейково, пос.
A83: 75 | B83: Рождественское сельское поселение Гатчинского района | C83: Всеволожск, город
A84: 76 | B84: Сиверское сельское поселение Гатчинского района | C84: Дранишники, дер.
A85: 77 | B85: Таицкое городское поселение Гатчинского района | C85: Дубровка, г.п.
A86: 78 | B86: Елизаветинское сельское поселение Гатчинского района | C86: Ёксолово, дер.
A87: 79 | B87: Большеколпанское сельское поселение Гатчинского района | C87: Заневка, дер.
A88: 80 | B88: Пудостьское сельское поселение Гатчинского района | C88: имени Морозова, г.п.
A89: 81 | B89: Гатчинского районф | C89: имени Свердлова, г.п.
A90: 82 | B90: Веревское сельское поселение Гатчинского района | C90: Кавголово, дер.
A91: 83 | B91: Сусанинское сельское поселение Гатчинского района | C91: Кальтино, дер.
A92: 84 | B92: Сяськелевское сельское поселение Гатчинского района | C92: Канисты, дер.
A93: 85 | B93: Войсковицкое сельское поселение Гатчинского района | C93: Капитолово, дер.
A94: 86 | B94: Вырицкое городское поселение Гатчинского района | C94: Карьер-Мяглово, местечко
A95: 87 | B95: Гатчинское городское поселение Гатчинского района | C95: Касимово, дер.
A96: 88 | B96: Дружногорское городское поселение Гатчинского района | C96: Кирполье, дер.
A97: 89 | B97: Сиверское городскоое поселение Гатчинского района | C97: Кискелово, дер.
A98: 90 | B98: Елизаветинское сельское поселение Гатчинского района | C98: Ковалево, пос.
A99: 91 | B99: Кобринское сельское поселение Гатчинского района | C99: Колбино, дер.
A100: 92 | B100: Коммунарское городское поселение Гатчинского района | C100: Колтуши, дер.
A101: 93 | B101: Сиверское городское поселение Гатчинского района | C101: Колясово, дер.
A102: 94 | B102: Пудомягское сельское поселение Гатчинского района | C102: Коркино, дер.
A103: 95 | B103: Веревское сельское поселение Гатчинского района | C103: Корнево, п.ст.
A104: 96 | B104: Новосветское сельское поселение Гатчинского района | C104: Кошкино, дер.
A105: 97 | B105: Большеколпанское сельское поселение Гатчинского района | C105: Красная Горка, дер.
A106: 98 | B106: Кобринское сельское поселение Гатчинского района | C106: Кузьмолово, дер.
A107: 99 | B107: Вырицкое городское поселение Гатчинского района | C107: Кузьмоловский, г.п.
A108: 100 | B108: Сусанинское сельское поселение Гатчинского района | C108: Куйворы, дер.
A109: 101 | B109: Лидское сельское поселение Бокситогорского района | C109: Куялово, дер.
A110: 102 | B110: Большеколпанское сельское поселение Гатчинского района | C110: Лаврики, дер.
A111: 103 | B111: Таицкое городское поселение Гатчинского района | C111: Лесколово, дер.
A112: 104 | B112: Сиверское городское поселение Гатчинского района | C112: Лиголамби, дер.
A113: 105 | B113: Новосветское сельское поселение Гатчинского района | C113: Лупполово, дер.
A114: 106 | B114: Войсковицкое сельское поселение Гатчинского района | C114: Малая Романовка, дер.
A115: 107 | B115: Пудостьское сельское поселение Гатчинского района | C115: Манушкино, дер.
A116: 108 | B116: Пудомягско сельское поселение Гатчинского района | C116: Маслово, дер.
A117: 109 | B117: Сяськелевское сельское поселение Гатчинского района | C117: Медный Завод, дер.
A118: 110 | B118: Рождественское сельское поселение Гатчинского района | C118: Мендсары, дер.
A119: 111 | B119: Сусанинское сельское поселение Гатчинского района | C119: Минулово, дер.
A120: 112 | B120: Сиверское сельское поселение Гатчинского района | C120: Мистолово, дер.
A121: 113 | B121: Таицкое сельское поселение Гатчинского района | C121: Мурино, город
A122: 114 | B122: Войсковицкое сельское поселение Гатчинского района | C122: Мяглово, дер.
A123: 115 | B123: Елизаветинское се сельское поселение Гатчинского района | C123: Нижние Осельки, дер.
A124: 116 | B124: Елизаветинское сельское поселение Гатчинского района | C124: Новая Пустошь, дер.
A125: 117 | B125: Пустомержское сельское поселение Кингисеппского района | C125: Новосаратовка, дер.
A126: 118 | B126: Котельское сельское поселение Кингисеппского района | C126: Озерки, дер.
A127: 119 | B127: Большелуцкое сельское поселение Кингисеппского района | C127: Озерки-1, дер.
A128: 120 | B128: Осьминское сельское поселение Лужского района | C128: Оранжерейка, дер.
A129: 121 | B129: Ивангоро́дское городско́е поселе́ние Кингисеппского района | C129: Орово, дер.
A130: 122 | B130: Усть–Лужское сельское поселение Кингисеппского района | C130: Осельки, п.ст.
A131: 123 | B131: Опольевское сельское поселение Кингисеппского района | C131: Осельки, пос.
A132: 124 | B132: Кингисеппское городское поселение Кингисеппского района | C132: Островки, дер.
A133: 125 | B133: МО Фалилеевское сельское поселение Кингисеппский МР ЛО | C133: Павлово, село
A134: 126 | B134: МО Глажевское сельское поселение Киришский МР ЛО | C134: Пески, пос.
A135: 127 | B135: МО Пчевское сельское поселение Киришский МР ЛО | C135: Плинтовка, дер.
A136: 128 | B136: МО Киришский МР ЛО | C136: Порошкино, дер.
A137: 129 | B137: МО Путиловское сельское поселение Кировского МР ЛО | C137: Проба, дер.
A138: 130 | B138: Назиевское городское поселение Кировского МР ЛО | C138: Разметелево, дер.
A139: 131 | B139: Шумское сельское поселение Кировского МР ЛО | C139: Рахья, г.п.
A140: 132 | B140: Кировское городское поселение МО Кировский МР ЛО | C140: Романовка, пос.
A141: 133 | B141: Мгинское городское поселение Кировского МР ЛО | C141: Савочкино, дер.
A142: 134 | B142: Кировское городское поселение Кировского МР ЛО | C142: Сарженка, дер.
A143: 135 | B143: Отрадненское городское поселение Кировского МР ЛО | C143: Сертолово, город
A144: 136 | B144: МО Павловское городское поселение Кировского МР ЛО | C144: Скотное, дер.
A145: 137 | B145: МО Приладожское городское поселение Кировского МР ЛО | C145: Старая Пустошь, дер.
A146: 138 | B146: Синявинское городское поселение Кировского МР ЛО | C146: Старая, дер.
A147: 139 | B147: Шлиссельбургское городское поселение (МО город Шлиссельбург) Кировского МР ЛО | C147: Суоранда, дер.
A148: 140 | B148: Лодейнопольское городское поселение Лодейнопольского МР ЛО | C148: Сярьги, дер.
A149: 141 | B149: Янегское сельское поселение Лодейнопольского МР ЛО | C149: Тавры, дер.
A150: 142 | B150: Аннинское городское поселение Ломоносовского МР ЛО | C150: Токкари, дер.
A151: 143 | B151: Виллозское городское поселение Ломоносовского МР ЛО | C151: Токсово, г.п.
A152: 144 | B152: Большеижорское городское поселение Ломоносовского МР ЛО | C152: Углово, дер.
A153: 145 | B153: Ропшинское сельское поселение Ломоносовского МР ЛО | C153: Углово, пос.
A154: 146 | B154: Пениковское сельское поселение Ломоносовского МР ЛО | C154: Хапо-Ое, дер.
A155: 147 | B155: Горбунковское сельское поселение Ломоносовского МР ЛО | C155: Хирвости, дер.
A156: 148 | B156: Оржицкое сельское поселение Ломоносовского МР ЛО | C156: Хиттолово, дер.
A157: 149 | B157: Лопухинское сельское поселение Ломоносовского МР ЛО | C157: Хязельки, дер.
A158: 150 | B158: Гостилицкое сельское поселение Ломоносовского МР ЛО | C158: Шереметьевка, дер.
A159: 151 | B159: Низинское сельское поселение Ломоносовского МР ЛО | C159: Щеглово, дер.
A160: 152 | B160: Кипенское сельское поселение Ломоносовского МР ЛО | C160: Щеглово, пос.
A161: 153 | B161: Лебяженское городское поселение Ломоносовского МР ЛО | C161: Энколово, дер.
A162: 154 | B162: Копорское сельское поселение Ломоносовского МР ЛО | C162: Юкки, дер.
A163: 155 | B163: Лаголовское сельское поселение Ломоносовского МР ЛО | C163: Янино-1, г.п.
A164: 156 | B164: Русско-Высоцкое сельское поселение Ломоносовского МР ЛО | C164: Янино-2, дер.
A165: 157 | B165: Дзержинское сельское поселение Лужского МР ЛО | C165: Александровка, дер.
A166: 158 | B166: Дзержинское сельское поселение | C166: Барышево, пос.
A167: 159 | B167: Толмачевское городское поселение | C167: Вишневка, пос.
A168: 160 | B168: Заклинское сельское поселение | C168: Волочаевка, пос.
A169: 161 | B169: Мшинское сельское поселение | C169: Выборг, город
A170: 162 | B170: Лужское городское поселение | C170: Ганино, пос.
A171: 163 | B171: Оредежское сельское посление | C171: Гончарово, пос.
A172: 164 | B172: Оредежское сельское поселение | C172: Зелёная Роща, пос.
A173: 165 | B173: Ретюнское сельское поселение | C173: Ильичево, пос.
A174: 166 | B174: Серебрянское сельское поселение | C174: Каменногорск, город
A175: 167 | B175: Торковичское сельское поселение | C175: Кирпичное, пос.
A176: 168 | B176: Важинское городское поселение | C176: Коробицыно, пос.
A177: 169 | B177: Никольское городское поселение | C177: Красносельское, пос.
A178: 170 | B178: Подпорожское городское поселение | C178: Ленинское, пос.
A179: 171 | B179: Раздольевское сельское поселение | C179: Лесогорский, г.п.
A180: 172 | B180: Мельниковское сельское поселение | C180: Лосево, дер.
A181: 173 | B181: Запорожское сельское поселение | C181: Матросово, п.ст.
A182: 174 | B182: Мгинское городское поселение | C182: Местерьярви, п.ст.
A183: 175 | B183: Сосновское сельское поселение | C183: Озерки, пос.
A184: 176 | B184: Красноозерное сельское поселение | C184: Ольшаники, пос.
A185: 177 | B185: Мичуринское сельское поселение | C185: Первомайское, пос.
A186: 178 | B186: Приозерское городское поселение | C186: Перово, пос.
A187: 179 | B187: Ромашкинское сельское поселение | C187: Песочное, пос.
A188: 180 | B188: Выскатское сельское поселение | C188: Победа, пос.
A189: 181 | B189: Гостицкое сельское поселение | C189: Подгорье, пос.
A190: 182 | B190: Борское сельское поселение | C190: Поляны, пос.
A191: 183 | B191: Сланцевское городское поселение | C191: Правдино, пос.
A192: 184 | B192: Сосновоборский городской округ | C192: Приветнинский карьер, пос.
A193: 185 | B193: Мелегежское сельское поселение | C193: Приветнинское, п.ст.
A194: 186 | B194: Тихвинское городское поселение | C194: Приветнинское, пос.
A195: 187 | B195: Цвылевское сельское посление | C195: Пруды, пос.
A196: 188 | B196: Федоровское городское поселение | C196: Пушное, пос.
A197: 189 | B197: Тельмановское сельское поселение | C197: Решетниково, дер.
A198: 190 | B198: Лопухинское сельское посление | C198: Рощино, г.п.
A199: 191 | B199: Красноборское городское поселение | C199: Светогорск, город
A200: 192 | B200: Любанское городское поселение | C200: Семиозерье, пос.
A201: 193 | B201: Тосненское городское поселение | C201: Симагино, пос.
A202: 194 | B202: Нурминское сельское поселение | C202: Советский, г.п.
... 274 more rows

Sheet Кировский р-н
A3: № п/п | B3: Муниципальное образование | C3: Наименование населенного пункта | D3: Адрес домовладения (улица номер) | E3: Всего домовладений | F3: врезка (нулевые) | G3: Протяжённость, м | H3: необходимость установки ПРГ(шт) | I3: наличие топосъёмки | J3: особые условия подключения, с учётом информации о собственниках зем участков, по которым проходит план трассы (признаки ИП) | K3: Мероприятния необходимые для создания технической возможности подключения объектов индивидуального жилищного строительства (мероприятия связанные с ликвидацией дифицита газа ГРС) | L3: Наименование газораспределительной организации | M3: Срок догазификации | O3: Примечание
M4: год | N4: месяц
A5: ст.1 | B5: ст.2 | C5: ст.3 | D5: ст.4 | E5: ст.5 | F5: ст.6 | G5: ст.7 | H5: ст.8 | I5: ст.9 | J5: ст.10 | K5: ст.11 | L5: ст.12 | M5: ст.13 | N5: ст.14 | O5: ст.15
B6: МО Путиловское сельское поселение Кировского МР ЛО | C6: Горная Шальдиха, дер. | D6: Сиреневая | E6: =SUM(E7:E23) -> 17 | G6: =SUM(G7:G23) -> 255 | M6: 2022
B7: МО Путиловское сельское поселение Кировского МР ЛО | C7: Горная Шальдиха, дер. | D7: Сиреневая 21а | E7: 1 | G7: 15 | L7: АО ГГРЛО | M7: 2022
B8: МО Путиловское сельское поселение Кировского МР ЛО | C8: Горная Шальдиха, дер. | D8: Сиреневая 23 | E8: 1 | G8: 15 | L8: АО ГГРЛО | M8: 2022
B9: МО Путиловское сельское поселение Кировского МР ЛО | C9: Горная Шальдиха, дер. | D9: Сиреневая 31 | E9: 1 | G9: 15 | L9: АО ГГРЛО | M9: 2022
B10: МО Путиловское сельское поселение Кировского МР ЛО | C10: Горная Шальдиха, дер. | D10: Сиреневая 41а | E10: 1 | G10: 15 | L10: АО ГГРЛО | M10: 2022
B11: МО Путиловское сельское поселение Кировского МР ЛО | C11: Горная Шальдиха, дер. | D11: Сиреневая 44 | E11: 1 | G11: 15 | L11: АО ГГРЛО | M11: 2022
B12: МО Путиловское сельское поселение Кировского МР ЛО | C12: Горная Шальдиха, дер. | D12: Сиреневая 44а | E12: 1 | G12: 15 | L12: АО ГГРЛО | M12: 2022
B13: МО Путиловское сельское поселение Кировского МР ЛО | C13: Горная Шальдиха, дер. | D13: Сиреневая 44б | E13: 1 | G13: 15 | L13: АО ГГРЛО | M13: 2022
B14: МО Путиловское сельское поселение Кировского МР ЛО | C14: Горная Шальдиха, дер. | D14: Сиреневая 52 | E14: 1 | G14: 15 | L14: АО ГГРЛО | M14: 2022
B15: МО Путиловское сельское поселение Кировского МР ЛО | C15: Горная Шальдиха, дер. | D15: Сиреневая 55а | E15: 1 | G15: 15 | L15: АО ГГРЛО | M15: 2022
B16: МО Путиловское сельское поселение Кировского МР ЛО | C16: Горная Шальдиха, дер. | D16: Сиреневая 57а | E16: 1 | G16: 15 | L16: АО ГГРЛО | M16: 2022
B17: МО Путиловское сельское поселение Кировского МР ЛО | C17: Горная Шальдиха, дер. | D17: Сиреневая 65 | E17: 1 | G17: 15 | L17: АО ГГРЛО | M17: 2022
B18: МО Путиловское сельское поселение Кировского МР ЛО | C18: Горная Шальдиха, дер. | D18: Сиреневая 71а | E18: 1 | G18: 15 | L18: АО ГГРЛО | M18: 2022
B19: МО Путиловское сельское поселение Кировского МР ЛО | C19: Горная Шальдиха, дер. | D19: Сиреневая 77а | E19: 1 | G19: 15 | L19: АО ГГРЛО | M19: 2022
B20: МО Путиловское сельское поселение Кировского МР ЛО | C20: Горная Шальдиха, дер. | D20: Сиреневая 83 | E20: 1 | G20: 15 | L20: АО ГГРЛО | M20: 2022
B21: МО Путиловское сельское поселение Кировского МР ЛО | C21: Горная Шальдиха, дер. | D21: Сиреневая 86 | E21: 1 | G21: 15 | L21: АО ГГРЛО | M21: 2022
B22: МО Путиловское сельское поселение Кировского МР ЛО | C22: Горная Шальдиха, дер. | D22: Сиреневая 88 | E22: 1 | G22: 15 | L22: АО ГГРЛО | M22: 2022
B23: МО Путиловское сельское поселение Кировского МР ЛО | C23: Горная Шальдиха, дер. | D23: Сиреневая 2 | E23: 1 | G23: 15 | L23: АО ГГРЛО | M23: 2022
B24: МО Путиловское сельское поселение Кировского МР ЛО | C24: Горная Шальдиха, дер. | D24: ул. Дачная | E24: =SUM(E25:E27) -> 3 | G24: =SUM(G25:G27) -> 45 | M24: 2022
B25: МО Путиловское сельское поселение Кировского МР ЛО | C25: Горная Шальдиха, дер. | D25: Дачная 10б | E25: 1 | G25: 15 | L25: АО ГГРЛО | M25: 2022
B26: МО Путиловское сельское поселение Кировского МР ЛО | C26: Горная Шальдиха, дер. | D26: Дачная 10в | E26: 1 | G26: 15 | L26: АО ГГРЛО | M26: 2022
B27: МО Путиловское сельское поселение Кировского МР ЛО | C27: Горная Шальдиха, дер. | D27: Дачная 17 | E27: 1 | G27: 15 | L27: АО ГГРЛО | M27: 2022
B28: МО Путиловское сельское поселение Кировского МР ЛО | C28: Горная Шальдиха, дер. | D28: ул. Северная | E28: =SUM(E29:E30) -> 2 | G28: =SUM(G29:G30) -> 30 | M28: 2022
B29: МО Путиловское сельское поселение Кировского МР ЛО | C29: Горная Шальдиха, дер. | D29: Северная 23 | E29: 1 | G29: 15 | L29: АО ГГРЛО | M29: 2022
B30: МО Путиловское сельское поселение Кировского МР ЛО | C30: Горная Шальдиха, дер. | D30: Северная 6 | E30: 1 | G30: 15 | L30: АО ГГРЛО | M30: 2022
B31: МО Путиловское сельское поселение Кировского МР ЛО | C31: Горная Шальдиха, дер. | D31: ул. Рябиновая | E31: =SUM(E32:E37) -> 6 | G31: =SUM(G32:G37) -> 80 | M31: 2022
B32: МО Путиловское сельское поселение Кировского МР ЛО | C32: Горная Шальдиха, дер. | D32: Рябиновая 1 | E32: 1 | G32: 15 | L32: АО ГГРЛО | M32: 2022
B33: МО Путиловское сельское поселение Кировского МР ЛО | C33: Горная Шальдиха, дер. | D33: Рябиновая 17 | E33: 1 | G33: 15 | L33: АО ГГРЛО | M33: 2022
B34: МО Путиловское сельское поселение Кировского МР ЛО | C34: Горная Шальдиха, дер. | D34: Рябиновая 22а | E34: 1 | G34: 15 | L34: АО ГГРЛО | M34: 2022
B35: МО Путиловское сельское поселение Кировского МР ЛО | C35: Горная Шальдиха, дер. | D35: Рябиновая 26 | E35: 1 | G35: 5 | L35: АО ГГРЛО | M35: 2022 | N35: 1
B36: МО Путиловское сельское поселение Кировского МР ЛО | C36: Горная Шальдиха, дер. | D36: Рябиновая 28 | E36: 1 | G36: 15 | L36: АО ГГРЛО | M36: 2022
B37: МО Путиловское сельское поселение Кировского МР ЛО | C37: Горная Шальдиха, дер. | D37: Рябиновая 38 | E37: 1 | G37: 15 | L37: АО ГГРЛО | M37: 2022
B38: МО Путиловское сельское поселение Кировского МР ЛО | C38: Горная Шальдиха, дер. | D38: ул. Ольховая | E38: =SUM(E39:E43) -> 5 | G38: =SUM(G39:G43) -> 75 | M38: 2022
B39: МО Путиловское сельское поселение Кировского МР ЛО | C39: Горная Шальдиха, дер. | D39: Ольховая 2 | E39: 1 | G39: 15 | L39: АО ГГРЛО | M39: 2022
B40: МО Путиловское сельское поселение Кировского МР ЛО | C40: Горная Шальдиха, дер. | D40: Ольховая 4 | E40: 1 | G40: 15 | L40: АО ГГРЛО | M40: 2022
B41: МО Путиловское сельское поселение Кировского МР ЛО | C41: Горная Шальдиха, дер. | D41: Ольховая 19 | E41: 1 | G41: 15 | L41: АО ГГРЛО | M41: 2022
B42: МО Путиловское сельское поселение Кировского МР ЛО | C42: Горная Шальдиха, дер. | D42: Ольховая 20 | E42: 1 | G42: 15 | L42: АО ГГРЛО | M42: 2022
B43: МО Путиловское сельское поселение Кировского МР ЛО | C43: Горная Шальдиха, дер. | D43: Ольховая 23 | E43: 1 | G43: 15 | L43: АО ГГРЛО | M43: 2022
B44: МО Путиловское сельское поселение Кировского МР ЛО | C44: Горная Шальдиха, дер. | D44: ул. Хвойная | E44: =SUM(E45:E51) -> 7 | G44: =SUM(G45:G51) -> 105 | M44: 2022
B45: МО Путиловское сельское поселение Кировского МР ЛО | C45: Горная Шальдиха, дер. | D45: Хвойная 36а | E45: 1 | G45: 15 | L45: АО ГГРЛО | M45: 2022
B46: МО Путиловское сельское поселение Кировского МР ЛО | C46: Горная Шальдиха, дер. | D46: Хвойная 47 | E46: 1 | G46: 15 | L46: АО ГГРЛО | M46: 2022
B47: МО Путиловское сельское поселение Кировского МР ЛО | C47: Горная Шальдиха, дер. | D47: Хвойная 53 | E47: 1 | G47: 15 | L47: АО ГГРЛО | M47: 2022
B48: МО Путиловское сельское поселение Кировского МР ЛО | C48: Горная Шальдиха, дер. | D48: Хвойная 58 | E48: 1 | G48: 15 | L48: АО ГГРЛО | M48: 2022
B49: МО Путиловское сельское поселение Кировского МР ЛО | C49: Горная Шальдиха, дер. | D49: Хвойная 21 | E49: 1 | G49: 15 | L49: АО ГГРЛО | M49: 2022
B50: МО Путиловское сельское поселение Кировского МР ЛО | C50: Горная Шальдиха, дер. | D50: Березовая 29 | E50: 1 | G50: 15 | L50: АО ГГРЛО | M50: 2022
B51: МО Путиловское сельское поселение Кировского МР ЛО | C51: Горная Шальдиха, дер. | D51: Березовая 31 | E51: 1 | G51: 15 | L51: АО ГГРЛО | M51: 2022
B52: МО Путиловское сельское поселение Кировского МР ЛО | E52: =E44+E38+E31+E28+E24+E6 -> 40 | F52: =F44+F38+F31+F28+F24+F6 -> 0 | G52: 590 | H52: 0 | M52: 2022
B53: МО Путиловское сельское поселение Кировского МР ЛО | C53: Нижняя Шальдиха, дер. | D53: Староладожский канал | E53: =SUM(E54:E69) -> 14 | F53: =SUM(F54:F69) -> 2 | G53: =SUM(G54:G69) -> 210 | M53: 2022
B54: МО Путиловское сельское поселение Кировского МР ЛО | C54: Нижняя Шальдиха, дер. | D54: Староладожский канал 2а | E54: 1 | G54: 15 | L54: АО ГГРЛО | M54: 2022
B55: МО Путиловское сельское поселение Кировского МР ЛО | C55: Нижняя Шальдиха, дер. | D55: Староладожский канал 3 | E55: 1 | G55: 15 | L55: АО ГГРЛО | M55: 2022
B56: МО Путиловское сельское поселение Кировского МР ЛО | C56: Нижняя Шальдиха, дер. | D56: Староладожский канал 6 | E56: 1 | G56: 15 | L56: АО ГГРЛО | M56: 2022
B57: МО Путиловское сельское поселение Кировского МР ЛО | C57: Нижняя Шальдиха, дер. | D57: Староладожский канал 6а | E57: 1 | G57: 15 | L57: АО ГГРЛО | M57: 2022
B58: МО Путиловское сельское поселение Кировского МР ЛО | C58: Нижняя Шальдиха, дер. | D58: Староладожский канал 8 | F58: 1 | G58: 0 | L58: АО ГГРЛО | M58: 2022 | N58: 4
B59: МО Путиловское сельское поселение Кировского МР ЛО | C59: Нижняя Шальдиха, дер. | D59: Староладожский канал 11 | E59: 1 | G59: 15 | L59: АО ГГРЛО | M59: 2022
B60: МО Путиловское сельское поселение Кировского МР ЛО | C60: Нижняя Шальдиха, дер. | D60: Староладожский канал 17 | E60: 1 | G60: 15 | L60: АО ГГРЛО | M60: 2022
B61: МО Путиловское сельское поселение Кировского МР ЛО | C61: Нижняя Шальдиха, дер. | D61: Староладожский канал 18 | F61: 1 | G61: 0 | L61: АО ГГРЛО | M61: 2022 | N61: 3
B62: МО Путиловское сельское поселение Кировского МР ЛО | C62: Нижняя Шальдиха, дер. | D62: Староладожский канал 19б | E62: 1 | G62: 15 | L62: АО ГГРЛО | M62: 2022
B63: МО Путиловское сельское поселение Кировского МР ЛО | C63: Нижняя Шальдиха, дер. | D63: Староладожский канал 40 | E63: 1 | G63: 15 | L63: АО ГГРЛО | M63: 2022
B64: МО Путиловское сельское поселение Кировского МР ЛО | C64: Нижняя Шальдиха, дер. | D64: Староладожский канал 47 | E64: 1 | G64: 15 | L64: АО ГГРЛО | M64: 2022
B65: МО Путиловское сельское поселение Кировского МР ЛО | C65: Нижняя Шальдиха, дер. | D65: Староладожский канал 57а | E65: 1 | G65: 15 | L65: АО ГГРЛО | M65: 2022
B66: МО Путиловское сельское поселение Кировского МР ЛО | C66: Нижняя Шальдиха, дер. | D66: Староладожский канал 61 | E66: 1 | G66: 15 | L66: АО ГГРЛО | M66: 2022
B67: МО Путиловское сельское поселение Кировского МР ЛО | C67: Нижняя Шальдиха, дер. | D67: Староладожский канал 67а | E67: 1 | G67: 15 | L67: АО ГГРЛО | M67: 2022
B68: МО Путиловское сельское поселение Кировского МР ЛО | C68: Нижняя Шальдиха, дер. | D68: Староладожский канал 73 | E68: 1 | G68: 15 | L68: АО ГГРЛО | M68: 2022
B69: МО Путиловское сельское поселение Кировского МР ЛО | C69: Нижняя Шальдиха, дер. | D69: Староладожский канал 105 | E69: 1 | G69: 15 | L69: АО ГГРЛО | M69: 2022
B70: МО Путиловское сельское поселение Кировского МР ЛО | C70: Нижняя Шальдиха, дер. | D70: ул. Западная | E70: =SUM(E71:E74) -> 4 | G70: =SUM(G71:G74) -> 60 | M70: 2022
B71: МО Путиловское сельское поселение Кировского МР ЛО | C71: Нижняя Шальдиха, дер. | D71: Западная 1 | E71: 1 | G71: 15 | L71: АО ГГРЛО | M71: 2022
B72: МО Путиловское сельское поселение Кировского МР ЛО | C72: Нижняя Шальдиха, дер. | D72: Западная 3а | E72: 1 | G72: 15 | L72: АО ГГРЛО | M72: 2022
B73: МО Путиловское сельское поселение Кировского МР ЛО | C73: Нижняя Шальдиха, дер. | D73: Западная 9 | E73: 1 | G73: 15 | L73: АО ГГРЛО | M73: 2022
B74: МО Путиловское сельское поселение Кировского МР ЛО | C74: Нижняя Шальдиха, дер. | D74: Западная 13 | E74: 1 | G74: 15 | L74: АО ГГРЛО | M74: 2022
B75: МО Путиловское сельское поселение Кировского МР ЛО | C75: Нижняя Шальдиха, дер. | D75: ул. Петровская | E75: =SUM(E76:E80) -> 5 | G75: =SUM(G76:G80) -> 75 | M75: 2022
B76: МО Путиловское сельское поселение Кировского МР ЛО | C76: Нижняя Шальдиха, дер. | D76: Петровская 17а | E76: 1 | G76: 15 | L76: АО ГГРЛО | M76: 2022
B77: МО Путиловское сельское поселение Кировского МР ЛО | C77: Нижняя Шальдиха, дер. | D77: Петровская 19а | E77: 1 | G77: 15 | L77: АО ГГРЛО | M77: 2022
B78: МО Путиловское сельское поселение Кировского МР ЛО | C78: Нижняя Шальдиха, дер. | D78: Петровская 29 | E78: 1 | G78: 15 | L78: АО ГГРЛО | M78: 2022
B79: МО Путиловское сельское поселение Кировского МР ЛО | C79: Нижняя Шальдиха, дер. | D79: Петровская 45а | E79: 1 | G79: 15 | L79: АО ГГРЛО | M79: 2022
B80: МО Путиловское сельское поселение Кировского МР ЛО | C80: Нижняя Шальдиха, дер. | D80: Петровская 49б | E80: 1 | G80: 15 | L80: АО ГГРЛО | M80: 2022
B81: МО Путиловское сельское поселение Кировского МР ЛО | C81: Нижняя Шальдиха, дер. | D81: Бешлотская 13 | E81: =E82 -> 1 | G81: =G82 -> 15 | M81: 2022
B82: МО Путиловское сельское поселение Кировского МР ЛО | C82: Нижняя Шальдиха, дер. | D82: Бешлотская 13 | E82: 1 | G82: 15 | L82: АО ГГРЛО | M82: 2022
B83: МО Путиловское сельское поселение Кировского МР ЛО | C83: Нижняя Шальдиха, дер. | D83: Новоладожский канал | E83: =SUM(E84:E91) -> 8 | G83: =SUM(G84:G91) -> 120 | M83: 2022
B84: МО Путиловское сельское поселение Кировского МР ЛО | C84: Нижняя Шальдиха, дер. | D84: Новоладожский канал 1 | E84: 1 | G84: 15 | L84: АО ГГРЛО | M84: 2022
B85: МО Путиловское сельское поселение Кировского МР ЛО | C85: Нижняя Шальдиха, дер. | D85: Новоладожский канал 1б | E85: 1 | G85: 15 | L85: АО ГГРЛО | M85: 2022
B86: МО Путиловское сельское поселение Кировского МР ЛО | C86: Нижняя Шальдиха, дер. | D86: Новоладожский канал 2а | E86: 1 | G86: 15 | L86: АО ГГРЛО | M86: 2022
B87: МО Путиловское сельское поселение Кировского МР ЛО | C87: Нижняя Шальдиха, дер. | D87: Новоладожский канал 3 | E87: 1 | G87: 15 | L87: АО ГГРЛО | M87: 2022
B88: МО Путиловское сельское поселение Кировского МР ЛО | C88: Нижняя Шальдиха, дер. | D88: Новоладожский канал 5 | E88: 1 | G88: 15 | L88: АО ГГРЛО | M88: 2022
B89: МО Путиловское сельское поселение Кировского МР ЛО | C89: Нижняя Шальдиха, дер. | D89: Новоладожский канал 13 | E89: 1 | G89: 15 | L89: АО ГГРЛО | M89: 2022
B90: МО Путиловское сельское поселение Кировского МР ЛО | C90: Нижняя Шальдиха, дер. | D90: Новоладожский канал 15а | E90: 1 | G90: 15 | L90: АО ГГРЛО | M90: 2022
B91: МО Путиловское сельское поселение Кировского МР ЛО | C91: Нижняя Шальдиха, дер. | D91: Новоладожский канал 27 | E91: 1 | G91: 15 | L91: АО ГГРЛО | M91: 2022
B92: МО Путиловское сельское поселение Кировского МР ЛО | E92: =E83+E81+E75+E70+E53 -> 32 | F92: =F83+F81+F75+F70+F53 -> 2 | G92: 480 | H92: 0 | M92: 2022
B93: МО Путиловское сельское поселение Кировского МР ЛО | C93: Путилово, село | D93: ул. Братьев Парижский | E93: =SUM(E94:E125) -> 32 | G93: =SUM(G94:G125) -> 1725
B94: МО Путиловское сельское поселение Кировского МР ЛО | C94: Путилово, село | D94: Братьев Пожарских 2 | E94: 1 | G94: 125 | H94: 1 | L94: АО ГГРЛО | M94: 2022
B95: МО Путиловское сельское поселение Кировского МР ЛО | C95: Путилово, село | D95: Братьев Пожарских 4 | E95: 1 | G95: 15 | L95: АО ГГРЛО | M95: 2022 | O95: 15м с учетом газификации дома 2
B96: МО Путиловское сельское поселение Кировского МР ЛО | C96: Путилово, село | D96: Братьев Пожарских 6 | E96: 1 | G96: 15 | L96: АО ГГРЛО | M96: 2022 | O96: 15м с учетом газификации дома 2
B97: МО Путиловское сельское поселение Кировского МР ЛО | C97: Путилово, село | D97: Братьев Пожарских 8 | E97: 1 | G97: 15 | L97: АО ГГРЛО | M97: 2022 | O97: 15м с учетом газификации дома 2
B98: МО Путиловское сельское поселение Кировского МР ЛО | C98: Путилово, село | D98: Братьев Пожарских 10 | E98: 1 | G98: 15 | L98: АО ГГРЛО | M98: 2022 | O98: 15м с учетом газификации дома 2
B99: МО Путиловское сельское поселение Кировского МР ЛО | C99: Путилово, село | D99: Братьев Пожарских 12 | E99: 1 | G99: 15 | L99: АО ГГРЛО | M99: 2022 | O99: 15м с учетом газификации дома 2
B100: МО Путиловское сельское поселение Кировского МР ЛО | C100: Путилово, село | D100: Братьев Пожарских 14 | E100: 1 | G100: 15 | L100: АО ГГРЛО | M100: 2022 | O100: 15м с учетом газификации дома 2
B101: МО Путиловское сельское поселение Кировского МР ЛО | C101: Путилово, село | D101: Братьев Пожарских 16а | E101: 1 | G101: 15 | L101: АО ГГРЛО | M101: 2022 | O101: 15м с учетом газификации дома 2
B102: МО Путиловское сельское поселение Кировского МР ЛО | C102: Путилово, село | D102: Братьев Пожарских 11 | E102: 1 | G102: 10 | L102: АО ГГРЛО | M102: 2022 | O102: 10м с учетом газификации д.3а
B103: МО Путиловское сельское поселение Кировского МР ЛО | C103: Путилово, село | D103: Братьев Пожарских 17а | E103: 1 | G103: 55 | J103: по землям сторонних владельцев, согласие собственника сети | L103: Рысков А.А. | M103: 2022
B104: МО Путиловское сельское поселение Кировского МР ЛО | C104: Путилово, село | D104: Братьев Пожарских 17б | E104: 1 | G104: 10 | J104: по землям сторонних владельцев, согласие собственника сети | L104: Рысков А.А. | M104: 2022
B105: МО Путиловское сельское поселение Кировского МР ЛО | C105: Путилово, село | D105: Братьев Пожарских 20 | E105: 1 | G105: 20 | J105: возможно ГНБ | L105: АО ГГРЛО | M105: 2022
B106: МО Путиловское сельское поселение Кировского МР ЛО | C106: Путилово, село | D106: Братьев Пожарских 21а | E106: 1 | G106: 25 | L106: АО ГГРЛО | M106: 2022
B107: МО Путиловское сельское поселение Кировского МР ЛО | C107: Путилово, село | D107: Братьев Пожарских 32 | E107: 1 | G107: 40 | L107: АО ГГРЛО | M107: 2022 | O107: 40м с учетом газификации д.40
B108: МО Путиловское сельское поселение Кировского МР ЛО | C108: Путилово, село | D108: Братьев Пожарских 34 | E108: 1 | G108: 40 | L108: АО ГГРЛО | M108: 2022 | O108: 40м с учетом газификации д.40
B109: МО Путиловское сельское поселение Кировского МР ЛО | C109: Путилово, село | D109: Братьев Пожарских 36 | E109: 1 | G109: 45 | L109: АО ГГРЛО | M109: 2022 | O109: 45м с учетом газификации д.40
B110: МО Путиловское сельское поселение Кировского МР ЛО | C110: Путилово, село | D110: Братьев Пожарских 37 | E110: 1 | G110: 15 | L110: АО ГГРЛО | M110: 2022
B111: МО Путиловское сельское поселение Кировского МР ЛО | C111: Путилово, село | D111: Братьев Пожарских 38/2 | E111: 1 | G111: 15 | L111: АО ГГРЛО | M111: 2022 | O111: 15м с учетом газификации д.40
B112: МО Путиловское сельское поселение Кировского МР ЛО | C112: Путилово, село | D112: Братьев Пожарских 40 | E112: 1 | G112: 340 | H112: 1 | L112: АО ГГРЛО | M112: 2022
B113: МО Путиловское сельское поселение Кировского МР ЛО | C113: Путилово, село | D113: Братьев Пожарских 42 | E113: 1 | G113: 10 | L113: АО ГГРЛО | M113: 2022 | O113: 10м с учетом газификации д.42б
B114: МО Путиловское сельское поселение Кировского МР ЛО | C114: Путилово, село | D114: Братьев Пожарских 42а | E114: 1 | G114: 10 | L114: АО ГГРЛО | M114: 2022 | O114: 10м с учетом газификации д.42б
B115: МО Путиловское сельское поселение Кировского МР ЛО | C115: Путилово, село | D115: Братьев Пожарских 42б | E115: 1 | G115: 310 | L115: АО ГГРЛО | M115: 2022
B116: МО Путиловское сельское поселение Кировского МР ЛО | C116: Путилово, село | D116: Братьев Пожарских 43а | E116: 1 | G116: 30 | L116: АО ГГРЛО | M116: 2022
B117: МО Путиловское сельское поселение Кировского МР ЛО | C117: Путилово, село | D117: Братьев Пожарских 46 | E117: 1 | G117: 45 | L117: АО ГГРЛО | M117: 2022 | O117: 45м с учетом газификации д.48/1
B118: МО Путиловское сельское поселение Кировского МР ЛО | C118: Путилово, село | D118: Братьев Пожарских 46а | E118: 1 | G118: 10 | L118: АО ГГРЛО | M118: 2022 | O118: 10м с учетом газификации д.48/1
B119: МО Путиловское сельское поселение Кировского МР ЛО | C119: Путилово, село | D119: Братьев Пожарских 46б | E119: 1 | G119: 10 | L119: АО ГГРЛО | M119: 2022 | O119: 10м с учетом газификации д.48/1
B120: МО Путиловское сельское поселение Кировского МР ЛО | C120: Путилово, село | D120: Братьев Пожарских 46в/1 | E120: 1 | G120: 135 | L120: АО ГГРЛО | M120: 2022
B121: МО Путиловское сельское поселение Кировского МР ЛО | C121: Путилово, село | D121: Братьев Пожарских 46г | E121: 1 | G121: 25 | L121: АО ГГРЛО | M121: 2022 | O121: 25м с учетом газификации д.48/1
B122: МО Путиловское сельское поселение Кировского МР ЛО | C122: Путилово, село | D122: Братьев Пожарских 46д | E122: 1 | G122: 10 | L122: АО ГГРЛО | M122: 2022 | O122: 10м с учетом газификации д.48/1
B123: МО Путиловское сельское поселение Кировского МР ЛО | C123: Путилово, село | D123: Братьев Пожарских 48/1 | E123: 1 | G123: 115 | L123: АО ГГРЛО | M123: 2022
B124: МО Путиловское сельское поселение Кировского МР ЛО | C124: Путилово, село | D124: Братьев Пожарских 59 | E124: 1 | G124: 20 | J124: согласие собственнника сети | L124: Скол С.В. | M124: 2022
B125: МО Путиловское сельское поселение Кировского МР ЛО | C125: Путилово, село | D125: Братьев Пожарских 3а | E125: 1 | G125: 150 | J125: ГНБ | L125: АО ГГРЛО | M125: 2022
B126: МО Путиловское сельское поселение Кировского МР ЛО | C126: Путилово, село | D126: ул. Игнашкиных | E126: =SUM(E127:E160) -> 34 | G126: =SUM(G127:G160) -> 490
B127: МО Путиловское сельское поселение Кировского МР ЛО | C127: Путилово, село | D127: Игнашкиных 1 | E127: 1 | G127: 20 | J127: ГНБ | L127: АО ГГРЛО | M127: 2022
B128: МО Путиловское сельское поселение Кировского МР ЛО | C128: Путилово, село | D128: Игнашкиных 3 | E128: 1 | G128: 20 | J128: ГНБ | L128: АО ГГРЛО | M128: 2022
B129: МО Путиловское сельское поселение Кировского МР ЛО | C129: Путилово, село | D129: Игнашкиных 3а | E129: 1 | G129: 45 | J129: ГНБ | L129: АО ГГРЛО | M129: 2022
B130: МО Путиловское сельское поселение Кировского МР ЛО | C130: Путилово, село | D130: Игнашкиных 5 | E130: 1 | G130: 5 | L130: АО ГГРЛО | M130: 2022
B131: МО Путиловское сельское поселение Кировского МР ЛО | C131: Путилово, село | D131: Игнашкиных 6 | E131: 1 | G131: 5 | L131: АО ГГРЛО | M131: 2022
B132: МО Путиловское сельское поселение Кировского МР ЛО | C132: Путилово, село | D132: Игнашкиных 7а | E132: 1 | G132: 5 | L132: АО ГГРЛО | M132: 2022
B133: МО Путиловское сельское поселение Кировского МР ЛО | C133: Путилово, село | D133: Игнашкиных 9в | E133: 1 | G133: 5 | L133: АО ГГРЛО | M133: 2022
B134: МО Путиловское сельское поселение Кировского МР ЛО | C134: Путилово, село | D134: Игнашкиных 9д | E134: 1 | G134: 5 | L134: АО ГГРЛО | M134: 2022
B135: МО Путиловское сельское поселение Кировского МР ЛО | C135: Путилово, село | D135: Игнашкиных 10 | E135: 1 | G135: 5 | L135: АО ГГРЛО | M135: 2022
B136: МО Путиловское сельское поселение Кировского МР ЛО | C136: Путилово, село | D136: Игнашкиных 11 | E136: 1 | G136: 5 | L136: АО ГГРЛО | M136: 2022
B137: МО Путиловское сельское поселение Кировского МР ЛО | C137: Путилово, село | D137: Игнашкиных 11в | E137: 1 | G137: 20 | L137: АО ГГРЛО | M137: 2022
B138: МО Путиловское сельское поселение Кировского МР ЛО | C138: Путилово, село | D138: Игнашкиных 12 | E138: 1 | G138: 5 | L138: АО ГГРЛО | M138: 2022
B139: МО Путиловское сельское поселение Кировского МР ЛО | C139: Путилово, село | D139: Игнашкиных 13а | E139: 1 | G139: 5 | L139: АО ГГРЛО | M139: 2022
B140: МО Путиловское сельское поселение Кировского МР ЛО | C140: Путилово, село | D140: Игнашкиных 14 | E140: 1 | G140: 5 | L140: АО ГГРЛО | M140: 2022
B141: МО Путиловское сельское поселение Кировского МР ЛО | C141: Путилово, село | D141: Игнашкиных 15 | E141: 1 | G141: 5 | L141: АО ГГРЛО | M141: 2022
B142: МО Путиловское сельское поселение Кировского МР ЛО | C142: Путилово, село | D142: Игнашкиных 16 | E142: 1 | G142: 5 | L142: АО ГГРЛО | M142: 2022
B143: МО Путиловское сельское поселение Кировского МР ЛО | C143: Путилово, село | D143: Игнашкиных 19 | E143: 1 | G143: 5 | L143: АО ГГРЛО | M143: 2022
B144: МО Путиловское сельское поселение Кировского МР ЛО | C144: Путилово, село | D144: Игнашкиных 21 | E144: 1 | G144: 5 | L144: АО ГГРЛО | M144: 2022
B145: МО Путиловское сельское поселение Кировского МР ЛО | C145: Путилово, село | D145: Игнашкиных 21а | E145: 1 | G145: 5 | L145: АО ГГРЛО | M145: 2022
B146: МО Путиловское сельское поселение Кировского МР ЛО | C146: Путилово, село | D146: Игнашкиных 24 | E146: 1 | G146: 25 | J146: ГНБ | L146: АО ГГРЛО | M146: 2022
B147: МО Путиловское сельское поселение Кировского МР ЛО | C147: Путилово, село | D147: Игнашкиных 26 | E147: 1 | G147: 25 | J147: ГНБ | L147: АО ГГРЛО | M147: 2022
B148: МО Путиловское сельское поселение Кировского МР ЛО | C148: Путилово, село | D148: Игнашкиных 28 | E148: 1 | G148: 25 | J148: ГНБ | L148: АО ГГРЛО | M148: 2022
B149: МО Путиловское сельское поселение Кировского МР ЛО | C149: Путилово, село | D149: Игнашкиных 30 | E149: 1 | G149: 25 | J149: ГНБ | L149: АО ГГРЛО | M149: 2022
B150: МО Путиловское сельское поселение Кировского МР ЛО | C150: Путилово, село | D150: Игнашкиных 30а | E150: 1 | G150: 25 | J150: ГНБ | L150: АО ГГРЛО | M150: 2022
B151: МО Путиловское сельское поселение Кировского МР ЛО | C151: Путилово, село | D151: Игнашкиных 31 | E151: 1 | G151: 5 | L151: АО ГГРЛО | M151: 2022
B152: МО Путиловское сельское поселение Кировского МР ЛО | C152: Путилово, село | D152: Игнашкиных 32 | E152: 1 | G152: 25 | J152: ГНБ | L152: АО ГГРЛО | M152: 2022
B153: МО Путиловское сельское поселение Кировского МР ЛО | C153: Путилово, село | D153: Игнашкиных 40 | E153: 1 | G153: 25 | J153: ГНБ | L153: АО ГГРЛО | M153: 2022
B154: МО Путиловское сельское поселение Кировского МР ЛО | C154: Путилово, село | D154: Игнашкиных 44а | E154: 1 | G154: 5 | L154: АО ГГРЛО | M154: 2022
B155: МО Путиловское сельское поселение Кировского МР ЛО | C155: Путилово, село | D155: Игнашкиных 45 | E155: 1 | G155: 5 | L155: АО ГГРЛО | M155: 2022
B156: МО Путиловское сельское поселение Кировского МР ЛО | C156: Путилово, село | D156: Игнашкиных 46/1 | E156: 1 | G156: 25 | J156: ГНБ | L156: АО ГГРЛО | M156: 2022
B157: МО Путиловское сельское поселение Кировского МР ЛО | C157: Путилово, село | D157: Игнашкиных 46/2 | E157: 1 | G157: 20 | L157: АО ГГРЛО | M157: 2022
B158: МО Путиловское сельское поселение Кировского МР ЛО | C158: Путилово, село | D158: Игнашкиных 50 | E158: 1 | G158: 25 | J158: ГНБ | L158: АО ГГРЛО | M158: 2022
B159: МО Путиловское сельское поселение Кировского МР ЛО | C159: Путилово, село | D159: Игнашкиных 52 | E159: 1 | G159: 25 | J159: ГНБ | L159: АО ГГРЛО | M159: 2022
B160: МО Путиловское сельское поселение Кировского МР ЛО | C160: Путилово, село | D160: Игнашкиных 68 | E160: 1 | G160: 25 | J160: ГНБ | L160: АО ГГРЛО | M160: 2022
B161: МО Путиловское сельское поселение Кировского МР ЛО | C161: Путилово, село | D161: ул. Западная | E161: =SUM(E162:E173) -> 12 | G161: =SUM(G162:G173) -> 315
B162: МО Путиловское сельское поселение Кировского МР ЛО | C162: Путилово, село | D162: ул. Западная 2а | E162: 1 | G162: 5 | L162: АО ГГРЛО | M162: 2022
B163: МО Путиловское сельское поселение Кировского МР ЛО | C163: Путилово, село | D163: ул. Западная 3б | E163: 1 | G163: 25 | L163: АО ГГРЛО | M163: 2022
B164: МО Путиловское сельское поселение Кировского МР ЛО | C164: Путилово, село | D164: ул. Западная 4а | E164: 1 | G164: 5 | L164: АО ГГРЛО | M164: 2022
B165: МО Путиловское сельское поселение Кировского МР ЛО | C165: Путилово, село | D165: ул. Западная 6а | E165: 1 | G165: 80 | J165: по землям сторонних владельцев | L165: АО ГГРЛО | M165: 2022
B166: МО Путиловское сельское поселение Кировского МР ЛО | C166: Путилово, село | D166: ул. Западная 6б | E166: 1 | G166: 105 | J166: по землям сторонних владельцев | L166: АО ГГРЛО | M166: 2022
B167: МО Путиловское сельское поселение Кировского МР ЛО | C167: Путилово, село | D167: ул. Западная 8 | E167: 1 | G167: 5 | L167: АО ГГРЛО | M167: 2022
B168: МО Путиловское сельское поселение Кировского МР ЛО | C168: Путилово, село | D168: ул. Западная 9 | E168: 1 | G168: 15 | L168: АО ГГРЛО | M168: 2022
B169: МО Путиловское сельское поселение Кировского МР ЛО | C169: Путилово, село | D169: ул. Западная 10 | E169: 1 | G169: 5 | L169: АО ГГРЛО | M169: 2022
B170: МО Путиловское сельское поселение Кировского МР ЛО | C170: Путилово, село | D170: ул. Западная 14 | E170: 1 | G170: 5 | L170: АО ГГРЛО | M170: 2022
B171: МО Путиловское сельское поселение Кировского МР ЛО | C171: Путилово, село | D171: ул. Западная 15 | E171: 1 | G171: 20 | L171: АО ГГРЛО | M171: 2022
B172: МО Путиловское сельское поселение Кировского МР ЛО | C172: Путилово, село | D172: ул. Западная 16 | E172: 1 | G172: 25 | L172: АО ГГРЛО | M172: 2022
B173: МО Путиловское сельское поселение Кировского МР ЛО | C173: Путилово, село | D173: ул. Западная 17 | E173: 1 | G173: 20 | L173: АО ГГРЛО | M173: 2022
B174: МО Путиловское сельское поселение Кировского МР ЛО | C174: Путилово, село | D174: ул. Луговая | E174: =SUM(E175:E190) -> 15 | F174: =SUM(F175:F190) -> 1 | G174: =SUM(G175:G190) -> 640
B175: МО Путиловское сельское поселение Кировского МР ЛО | C175: Путилово, село | D175: Луговая 3а | E175: 1 | G175: 50 | J175: по землям сторонних владельцев | L175: АО ГГРЛО | M175: 2022
B176: МО Путиловское сельское поселение Кировского МР ЛО | C176: Путилово, село | D176: Луговая 3б | E176: 1 | G176: 15 | J176: по землям сторонних владельцев | L176: АО ГГРЛО | M176: 2022
B177: МО Путиловское сельское поселение Кировского МР ЛО | C177: Путилово, село | D177: Луговая 4 | E177: 1 | G177: 15 | L177: АО ГГРЛО | M177: 2022
B178: МО Путиловское сельское поселение Кировского МР ЛО | C178: Путилово, село | D178: Луговая 4а | E178: 1 | G178: 15 | L178: АО ГГРЛО | M178: 2022
B179: МО Путиловское сельское поселение Кировского МР ЛО | C179: Путилово, село | D179: Луговая 5а | E179: 1 | G179: 50 | J179: по землям сторонних владельцев | L179: АО ГГРЛО | M179: 2022
B180: МО Путиловское сельское поселение Кировского МР ЛО | C180: Путилово, село | D180: Луговая 6 | E180: 1 | G180: 15 | L180: АО ГГРЛО | M180: 2022
B181: МО Путиловское сельское поселение Кировского МР ЛО | C181: Путилово, село | D181: Луговая 8 | E181: 1 | G181: 15 | L181: АО ГГРЛО | M181: 2022
B182: МО Путиловское сельское поселение Кировского МР ЛО | C182: Путилово, село | D182: Луговая 8а | E182: 1 | G182: 15 | L182: АО ГГРЛО | M182: 2022
B183: МО Путиловское сельское поселение Кировского МР ЛО | C183: Путилово, село | D183: Луговая 9а | E183: 1 | G183: 90 | L183: АО ГГРЛО | M183: 2022
B184: МО Путиловское сельское поселение Кировского МР ЛО | C184: Путилово, село | D184: Луговая 10 | E184: 1 | G184: 50 | J184: по землям сторонних владельцев | L184: АО ГГРЛО | M184: 2022
B185: МО Путиловское сельское поселение Кировского МР ЛО | C185: Путилово, село | D185: Луговая 11 | E185: 1 | G185: 105 | L185: АО ГГРЛО | M185: 2022
B186: МО Путиловское сельское поселение Кировского МР ЛО | C186: Путилово, село | D186: Луговая 12 | F186: 1 | G186: 0 | L186: АО ГГРЛО | M186: 2022 | N186: 4
B187: МО Путиловское сельское поселение Кировского МР ЛО | C187: Путилово, село | D187: Луговая 13 | E187: 1 | G187: 115 | L187: АО ГГРЛО | M187: 2022
B188: МО Путиловское сельское поселение Кировского МР ЛО | C188: Путилово, село | D188: Луговая 14 | E188: 1 | G188: 15 | L188: АО ГГРЛО | M188: 2022
B189: МО Путиловское сельское поселение Кировского МР ЛО | C189: Путилово, село | D189: Луговая 16 | E189: 1 | G189: 15 | L189: АО ГГРЛО | M189: 2022
B190: МО Путиловское сельское поселение Кировского МР ЛО | C190: Путилово, село | D190: Луговая 25 | E190: 1 | G190: 60 | L190: АО ГГРЛО | M190: 2022
B191: МО Путиловское сельское поселение Кировского МР ЛО | C191: Путилово, село | D191: ул. Дорофеева | E191: =SUM(E192:E203) -> 7 | F191: =SUM(F192:F203) -> 5 | G191: =SUM(G192:G203) -> 90
B192: МО Путиловское сельское поселение Кировского МР ЛО | C192: Путилово, село | D192: Дорофеева 10 | E192: 1 | G192: 20 | L192: АО ГГРЛО | M192: 2022
B193: МО Путиловское сельское поселение Кировского МР ЛО | C193: Путилово, село | D193: Дорофеева 15а | F193: 1 | G193: 0 | L193: АО ГГРЛО | M193: 2022
B194: МО Путиловское сельское поселение Кировского МР ЛО | C194: Путилово, село | D194: Дорофеева 15б | E194: 1 | G194: 5 | L194: АО ГГРЛО | M194: 2022
B195: МО Путиловское сельское поселение Кировского МР ЛО | C195: Путилово, село | D195: Дорофеева 16 | E195: 1 | G195: 20 | L195: АО ГГРЛО | M195: 2022
B196: МО Путиловское сельское поселение Кировского МР ЛО | C196: Путилово, село | D196: Дорофеева 17б | E196: 1 | G196: 5 | L196: АО ГГРЛО | M196: 2022
B197: МО Путиловское сельское поселение Кировского МР ЛО | C197: Путилово, село | D197: Дорофеева 19 | F197: 1 | G197: 0 | L197: АО ГГРЛО | M197: 2022
B198: МО Путиловское сельское поселение Кировского МР ЛО | C198: Путилово, село | D198: Дорофеева 20 | E198: 1 | L198: АО ГГРЛО | M198: 2022
B199: МО Путиловское сельское поселение Кировского МР ЛО | C199: Путилово, село | D199: Дорофеева 21а | F199: 1 | G199: 0 | L199: АО ГГРЛО | M199: 2022
B200: МО Путиловское сельское поселение Кировского МР ЛО | C200: Путилово, село | D200: Дорофеева 21б | F200: 1 | G200: 0 | L200: АО ГГРЛО | M200: 2022
B201: МО Путиловское сельское поселение Кировского МР ЛО | C201: Путилово, село | D201: Дорофеева 24 | E201: 1 | G201: 35 | L201: АО ГГРЛО | M201: 2022
B202: МО Путиловское сельское поселение Кировского МР ЛО | C202: Путилово, село | D202: Дорофеева 25б | F202: 1 | G202: 0 | L202: АО ГГРЛО | M202: 2022
... 74 more rows
